[Event "76th Montenegro Championship 2024"]
[Site "Podgorica"]
[Date "2024.02.07"]
[Round "2.7"]
[White "Musovic, Armin"]
[Black "Ivanovic, Bozidar"]
[Result "1-0"]
[ECO "D40"]
[WhiteElo "2268"]
[BlackElo "2403"]
[Annotator "TA"]
[PlyCount "83"]
[EventDate "2024.02.06"]
[EventType "swiss"]
[EventCountry "MNE"]
[SourceTitle "playchess.com"]
[Source "ChessBase"]
[SourceQuality "1"]
[TimeControl "40/5400+30:1800+30"]

{[%evp 14,83,29,3,24,26,47,35,39,40,50,23,29,0,68,0,40,0,0,0,55,-32,0,0,25,0,8,0,0,-1,0,-30,-33,-27,-17,-54,10,-16,-9,-11,-4,-29,-29,-59,-55,-198,-40,-56,0,0,0,0,0,0,147,142,144,145,136,-22,-4,-225,707,707,707,644,689,692,686,665,710,667]} 1. a3 {[%emt 0:06:36]} d5 {[%emt 0:00:35]} 2. d4 {[%emt 0:00:03]} Nf6 {[%emt 0:00:48]} 3. Nf3 {[%emt 0:00:04]} e6 {[%emt 0:04:20]} 4. e3 {[%emt 0:02:42]} c5 {[%emt 0:01:23]} 5. c4 {[%emt 0:00:08]} dxc4 {[%emt 0:07:28]} 6. Bxc4 {[%emt 0:00:53]} Nc6 {[%emt 0:02:05]} 7. O-O {[%emt 0:02:26]} a6 {[%emt 0:02:26]} 8. Nc3 {[%emt 0:03:32]} cxd4 {[%emt 0:07:46]} 9. exd4 {[%emt 0:00:48]} Be7 {[%emt 0:05:58]} 10. Ba2 {[%emt 0:02:50]} O-O {[%emt 0:01:09] White is slightly better.} 11. Re1 {[%emt 0:00:52]} Nd5 {[%emt 0:10:35] Prevents Bf4} 12. Ne4 {[%emt 0:02:06]} Nf6 {[%emt 0:00:58]} 13. Nc3 {[%emt 0:03:31]} Nd5 $1 {[%emt 0:00:40] Dodges Bf4} 14. Ne4 {[%emt 0:06:49]} Nf6 $1 {[%emt 0:04:20]} 15. h4 {[%emt 0:08:49]} Nxe4 {[%emt 0:04:31]} 16. Rxe4 {[%emt 0:00:36]} Bf6 {[%emt 0:04:03]} ({Better is} 16... Bd7 $11) 17. Bf4 {[%emt 0:06:08]} (17. Bg5 $14) 17... Ne7 {[%emt 0:08:46]} 18. Rc1 {[%emt 0:02:40]} Nd5 {[%emt 0:01:11] Prevents Bc7.} 19. Bg3 {[%emt 0:03:38]} Bd7 {[%emt 0:04:30][%cal Bc8d7,Bd7c6,Bc6d5][%mdl 32]} 20. h5 {[%emt 0:06:14]} Bc6 {[%emt 0:01:09][%cal Od5c3] And now ...Nc3! would win.} 21. Rg4 {[%emt 0:02:11]} Ne7 {[%emt 0:02:19]} 22. Ne5 {[%emt 0:03:41]} Bd5 {[%emt 0:00:59]} 23. Bb1 {[%emt 0:00:43]} Nf5 {[%emt 0:02:34]} 24. Qd3 {[%emt 0:01:31]} Bxe5 {[%emt 0:04:23]} ({Black should try} 24... Rc8 $15 25. Re1 Qa5) 25. Bxe5 {[%emt 0:04:02][%cal Og4g7] Hoping for Rxg7+!} f6 {[%emt 0:02:06]} 26. Bf4 {[%emt 0:05:30]} Rf7 {[%emt 0:04:17]} 27. Qc2 {[%emt 0:03:04]} Re7 {[%emt 0:02:55]} 28. Be3 {[%emt 0:00:39]} Qe8 {[%emt 0:01:15]} 29. Rh4 {[%emt 0:08:52] [#]} g5 $2 {[%emt 0:00:20]} ({Not} 29... Nxh4 30. Qxh7+ Kf8 31. h6 $14) ({Black should play} 29... Bxg2 $1 $19 {White must now prevent ...g5.} 30. Rf4 Bc6 31. Rxf5 exf5 32. Qxf5 Be4 (32... Rxe3 33. Qxh7+ Kf8 34. Qh8+ Ke7 35. Qxe8+ Bxe8 36. fxe3 $16) 33. Bxe4 Rxe4) 30. Rh2 {[%emt 0:02:20]} g4 {[%emt 0:03:28]} (30... Rd8 $15) 31. Qe2 $11 {[%emt 0:02:07]} Rg7 {[%emt 0:01:02]} 32. h6 {[%emt 0:04:32]} Rg6 {[%emt 0:01:25]} 33. Rh5 {[%emt 0:00:23]} Nxe3 {[%emt 0:03:36]} 34. Qxe3 $16 {[%emt 0:01:45][%cal Oc1c7]} f5 {[%emt 0:00:07]} 35. Qe5 $36 {[%emt 0:00:06][%mdl 2048] Threatens to win with Rc7. Keeping Black busy. Black is weak on the dark squares} Rc8 {[%emt 0:01:13]} 36. Re1 {[%emt 0:00:27] White is more active.} (36. Rxc8 $16 Qxc8 37. Bxf5 Qc1+ 38. Kh2 g3+ 39. fxg3 Rxh6 40. Rh4) 36... Qf7 {[%emt 0:00:11]} 37. Bxf5 $2 {[%emt 0:00:51] [#]} Qf6 $4 {[%emt 0:01:35][%mdl 8192]} 38. Bxg6 $18 {[%emt 0:00:29] White is clearly winning.} Qxe5 {[%emt 0:00:06]} 39. Bxh7+ {[%emt 0:01:19]} Kxh7 {[%emt 0:00:04]} 40. Rexe5 {[%emt 0:00:00]} g3 {[%emt 0:00:00]} 41. fxg3 {[%emt 0:01:07]} Rc2 {[%emt 0:01:18]} 42. Reg5 {[%emt 0:03:44] Weighted Error Value: White=0.37/Black=0.23 (precise) .  Loses game:     	White=1     	---        Missed win:     	---       	Black=1      Mistake:       	White=3     	Black=5      Inaccurate:     	White=7     	Black=1      OK:         	White=5     	Black=8      Best:        	White=1     	Black=3      Strong:       	---       	Black=2} 1-0

[Event "76th Montenegro Championship 2024"]
[Site "Podgorica"]
[Date "2024.02.07"]
[Round "2.8"]
[White "Tomic, Aleksandar"]
[Black "Milovic, Jovan"]
[Result "0-1"]
[ECO "E70"]
[WhiteElo "2398"]
[BlackElo "2223"]
[Annotator "TA"]
[PlyCount "74"]
[EventDate "2024.02.06"]
[EventType "swiss"]
[EventCountry "MNE"]
[SourceTitle "playchess.com"]
[Source "ChessBase"]
[SourceQuality "1"]
[TimeControl "40/5400+30:1800+30"]

{[%evp 12,74,65,54,62,60,52,55,42,44,66,46,92,87,91,85,106,85,99,94,95,95,98,97,111,106,120,99,103,104,104,97,108,107,130,109,164,137,162,170,153,114,171,171,178,178,176,137,215,204,175,200,206,166,161,154,233,-160,-187,-843,-829,-975,-968,-1015,-1009]} 1. d4 {[%emt 0:05:37]} Nf6 {[%emt 0:00:35]} 2. c4 {[%emt 0:00:40]} g6 {[%emt 0:03:19]} 3. Nc3 {[%emt 0:02:09]} Bg7 {[%emt 0:00:05]} 4. e4 {[%emt 0:00:29][%cal Be2e4,Be4e5][%mdl 32]} O-O {[%emt 0:00:15]} 5. Be3 {[%emt 0:03:44]} c6 {[%emt 0:00:48]} 6. f3 {[%emt 0:10:16][%cal Bf2f3,Bf3f4][%mdl 32]} d5 {[%emt 0:02:06]} 7. e5 {[%emt 0:01:36]} Ne8 {[%emt 0:00:12]} 8. cxd5 {[%emt 0:03:28]} cxd5 {[%emt 0:00:16]} 9. f4 {[%emt 0:01:24]} Nc6 {[%emt 0:02:20] White is slightly better.} 10. Nf3 {[%emt 0:05:49]} Nc7 {[%emt 0:03:49]} 11. Bd3 {[%emt 0:10:01]} Bf5 {[%emt 0:04:24]} (11... f6 $14) 12. Bxf5 $16 {[%emt 0:04:58]} gxf5 {[%emt 0:00:03]} 13. O-O {[%emt 0:02:02]} Rc8 {[%emt 0:04:17]} 14. Kh1 {[%emt 0:02:58]} f6 {[%emt 0:05:58]} 15. Qd2 {[%emt 0:07:00]} Qd7 {[%emt 0:07:06]} 16. Rac1 {[%emt 0:02:12]} Ne6 {[%emt 0:02:04]} 17. Ne2 {[%emt 0:01:36]} Kh8 {[%emt 0:00:54]} 18. Nh4 {[%emt 0:01:55]} Nc7 {[%emt 0:02:06]} 19. Ng3 {[%emt 0:02:25]} e6 {[%emt 0:00:39]} 20. Nh5 {[%emt 0:01:36]} Qf7 {[%emt 0:01:07]} 21. Nxg7 {[%emt 0:03:21]} Qxg7 {[%emt 0:00:09]} 22. Rf3 $36 {[%emt 0:00:58][%cal Bf1f3,Bf3g3,Bg3h3][%mdl 2080] White is really pushing.} Qg4 {[%emt 0:05:49]} 23. Bf2 {[%emt 0:05:00] Strongly threatening Rb3.} fxe5 {[%emt 0:07:14]} (23... Qg7 $16 {was called for.} 24. Rg3 Qd7) 24. dxe5 {[%emt 0:01:53]} d4 {[%emt 0:01:07]} 25. Rg3 {[%emt 0:02:32]} Qh5 {[%emt 0:00:25]} 26. Nf3 {[%emt 0:03:04]} Nd5 {[%emt 0:02:03] [#]} (26... Qe8 $16 27. Rc4 (27. Bxd4 Rd8 $16) (27. Nxd4 Nxd4 28. Bxd4 Nd5 $16) 27... Nd5 28. Bxd4 (28. Nxd4 Nxd4 29. Rxd4 Qc6 $14) 28... Rd8) 27. Ng5 $1 $18 {[%emt 0:01:23]} (27. Nxd4 $6 Nxd4 28. Bxd4 Rxc1+ 29. Qxc1 Qe8 $16) 27... Qe8 {[%emt 0:15:29]} 28. Rh3 $1 {[%emt 0:02:02]} (28. Bxd4 Nxd4 29. Rxc8 Qxc8 $14) 28... h5 {[%emt 0:00:37]} 29. Rf1 {[%emt 0:07:52]} (29. Bxd4 $6 Nxd4 30. Rxc8 Qxc8 $16) 29... Kg7 {[%emt 0:02:31]} (29... Rg8 $16 {might work better.} 30. Bxd4 Nxd4) 30. Bxd4 {[%emt 0:00:44]} Nxd4 {[%emt 0:01:21]} 31. Qxd4 {[%emt 0:00:39]} Kh6 {[%emt 0:00:07]} 32. Qd1 {[%emt 0:01:18][%cal Og5e6] Nxe6! would now be deadly.} Rg8 {[%emt 0:08:27][%cal Od5f4]} 33. Qf3 {[%emt 0:03:18]} (33. g4 Nxf4 34. Rxf4 Rxg5 (34... Kxg5 35. Rxh5+ $14) 35. gxf5 Rd8 $17) 33... Rc2 {[%emt 0:02:49]} (33... Qg6 $16) 34. g4 $2 {[%emt 0:00:43]} (34. Rd1 $18 {[%cal Og5e6] Threatens to win with Nxe6!} Rxb2 35. Nxe6 Qxe6 36. Rxh5+ (36. Qxd5 {gets mated.} Qxd5) (36. Rxd5 Rg4 $14) 36... Kg7 37. Rg5+ (37. Rxd5 Qxd5 38. Rg5+ Kf8 $16) 37... Kf7 38. Rxg8 (38. Rxd5 Rxg5 39. fxg5 Rb1+ 40. Rd1 Rxd1+ 41. Qxd1 Qxe5 $11) (38. Qxd5 Qxd5 39. Rg1 Rxg5 40. fxg5 Rxa2 41. h3 Qxe5 42. Rd1 Qg3 43. g6+ Kxg6) 38... Kxg8 39. Rxd5 (39. Qxd5 Qxd5 40. Rg1 Rxa2 41. e6 b5 42. h3 a5 43. e7 Kf7 44. Kh2 Qf3 45. Kh1 Qg3 46. e8=R Kxe8) 39... Rb1+ 40. Rd1 Qxa2 41. h4 Rxd1+ 42. Qxd1) 34... fxg4 $17 {[%emt 0:01:51] Black is more active.} 35. Qxg4 {[%emt 0:00:01] [#]} (35. Qe4 Qg6 (35... Rxb2 36. Qh7#) 36. Rb3 Qxe4+ 37. Nxe4) 35... Ne3 $1 $19 {[%emt 0:00:29][%mdl 512] Black is clearly winning.} 36. Qf3 {[%emt 0:01:15]} (36. Qxe6+ Qxe6) 36... Nxf1 {[%emt 0:00:57]} 37. Qd3 {[%emt 0:00:29] Inhibits Nd2.} Qc6+ {[%emt 0:01:22] Weighted Error Value: White=0.59/Black=0.18 (very precise) .  Missed win:     	White=1     	---        Mistake:       	White=1     	Black=5      OK:         	White=13    	Black=4      Best:        	---       	Black=3      Strong:       	White=1     	---        Brilliant:      	---       	Black=1} ({Not} 37... Rxb2 38. Qh7#) 0-1

[Event "76th Montenegro Championship 2024"]
[Site "Podgorica"]
[Date "2024.02.07"]
[Round "2.9"]
[White "Miletic, Vuk"]
[Black "Drasko, Milan"]
[Result "1/2-1/2"]
[ECO "E28"]
[WhiteElo "2213"]
[BlackElo "2339"]
[Annotator "TA"]
[PlyCount "25"]
[EventDate "2024.02.06"]
[EventType "swiss"]
[EventCountry "MNE"]
[SourceTitle "playchess.com"]
[Source "ChessBase"]
[SourceQuality "1"]
[TimeControl "40/5400+30:1800+30"]

{[%evp 20,25,-41,-39,-1,-51,-71,-78]} 1. d4 {[%emt 0:00:04]} e6 {[%emt 0:00:32]} 2. c4 {[%emt 0:00:46]} Nf6 {[%emt 0:00:48]} 3. Nc3 {[%emt 0:00:20]} Bb4 {[%emt 0:01:06]} 4. a3 {[%emt 0:00:13]} Bxc3+ {[%emt 0:00:24]} 5. bxc3 {[%emt 0:00:05]} c5 {[%emt 0:02:11]} 6. e3 {[%emt 0:00:42]} b6 {[%emt 0:07:53]} 7. Bd3 {[%emt 0:00:49]} Bb7 {[%emt 0:03:36]} 8. f3 {[%emt 0:00:31]} Nc6 {[%emt 0:02:44]} 9. Ne2 {[%emt 0:00:11]} O-O {[%emt 0:00:49]} 10. O-O {[%emt 0:06:09]} Na5 {[%emt 0:06:10]} 11. e4 {[%emt 0:08:19]} Ne8 {[%emt 0:00:48]} 12. f4 {[%emt 0:21:40]} (12. dxc5 $11 Qc7 13. Be3) 12... f5 {[%emt 0:11:13]} 13. exf5 {[%emt 0:16:46] Weighted Error Value: White=0.25 (precise) /Black=0.20 (precise) .  Mistake:       	White=1     	---} 1/2-1/2

[Event "76th Montenegro Championship 2024"]
[Site "Podgorica"]
[Date "2024.02.07"]
[Round "2.10"]
[White "Sukovic, Andrej"]
[Black "Scekic, Veljko"]
[Result "1-0"]
[ECO "B01"]
[WhiteElo "2339"]
[BlackElo "2206"]
[Annotator "RC"]
[PlyCount "121"]
[EventDate "2024.02.06"]
[EventType "swiss"]
[EventCountry "MNE"]
[SourceTitle "playchess.com"]
[Source "ChessBase"]
[SourceQuality "1"]
[TimeControl "40/5400+30:1800+30"]

1. e4 {[%emt 0:00:03]} d5 {[%emt 0:00:12]} 2. exd5 {[%emt 0:00:08]} Qxd5 {[%emt 0:00:06]} 3. Nc3 {[%emt 0:00:06]} Qd8 {[%emt 0:00:06]} 4. d4 {[%emt 0:00:25]} c6 {[%emt 0:00:06]} 5. Bc4 {[%emt 0:03:40]} Nf6 {[%emt 0:00:15]} 6. Nf3 {[%emt 0:00:07]} Bf5 {[%emt 0:00:46]} 7. Ne5 {[%emt 0:22:17]} e6 {[%emt 0:00:20]} 8. g4 {[%emt 0:00:20]} Be4 {[%emt 0:02:52]} 9. Nxe4 {[%emt 0:02:03]} Nxe4 {[%emt 0:00:04]} 10. Qf3 {[%emt 0:01:06]} Nd6 {[%emt 0:00:08]} 11. Bd3 {[%emt 0:05:05]} Nd7 {[%emt 0:01:04]} 12. Bd2 {[%emt 0:04:10]} Be7 {[%emt 0:05:14]} 13. h4 {[%emt 0:04:19]} Bxh4 {[%emt 0:03:49]} 14. Bb4 {[%emt 0:07:09]} Nxe5 {[%emt 0:05:32]} 15. dxe5 {[%emt 0:00:10]} Nc8 {[%emt 0:00:20]} 16. O-O-O {[%emt 0:02:03]} Bg5+ {[%emt 0:01:08]} 17. Kb1 {[%emt 0:00:26]} Qc7 {[%emt 0:00:26]} 18. Bxh7 {[%emt 0:04:00]} c5 {[%emt 0:06:22]} 19. Bc3 {[%emt 0:03:53]} Nb6 {[%emt 0:01:15]} 20. Be4 {[%emt 0:09:08]} Ke7 {[%emt 0:01:32]} 21. Qg3 {[%emt 0:03:34]} Rad8 {[%emt 0:09:07]} 22. f4 {[%emt 0:00:16]} Rxd1+ {[%emt 0:00:25]} 23. Rxd1 {[%emt 0:00:05]} Bh4 {[%emt 0:00:07]} 24. Qf3 {[%emt 0:03:20]} Na4 {[%emt 0:00:18]} 25. Bd2 {[%emt 0:05:36]} Rd8 {[%emt 0:01:59]} 26. b3 {[%emt 0:02:48]} Rxd2 {[%emt 0:11:31]} 27. Rxd2 {[%emt 0:00:05]} Be1 {[%emt 0:00:08]} 28. Qe3 {[%emt 0:03:04]} Bxd2 {[%emt 0:00:37]} 29. Qxd2 {[%emt 0:00:04]} Nb6 {[%emt 0:00:09]} 30. Qh2 {[%emt 0:00:51]} g5 {[%emt 0:03:43]} 31. fxg5 {[%emt 0:00:19]} Nd7 {[%emt 0:01:33]} 32. g6 {[%emt 0:00:08]} fxg6 {[%emt 0:00:16]} 33. Qh4+ {[%emt 0:03:01]} Kf8 {[%emt 0:00:15]} 34. Bxg6 {[%emt 0:02:39]} Qxe5 {[%emt 0:01:06]} 35. Qd8+ {[%emt 0:00:13]} Kg7 {[%emt 0:00:09]} 36. Qxd7+ {[%emt 0:00:28]} Kxg6 {[%emt 0:00:06]} 37. Qxb7 {[%emt 0:00:20]} Kg5 {[%emt 0:04:37]} 38. Qxa7 {[%emt 0:01:07]} Kxg4 {[%emt 0:00:13]} 39. a4 {[%emt 0:04:17]} Qe1+ {[%emt 0:01:41]} 40. Kb2 {[%emt 0:00:00]} Qe5+ {[%emt 0:00:00]} 41. Ka2 {[%emt 0:00:51]} Qc3 {[%emt 0:00:20]} 42. Qh7 {[%emt 0:00:06]} e5 {[%emt 0:01:05]} 43. Qe4+ {[%emt 0:09:53]} Kg5 {[%emt 0:00:13]} 44. Kb1 {[%emt 0:00:38]} Kf6 {[%emt 0:01:52]} 45. Kc1 {[%emt 0:01:44]} Ke7 {[%emt 0:03:53]} 46. Kd1 {[%emt 0:00:22]} Kf6 {[%emt 0:01:13]} 47. Ke2 {[%emt 0:00:34]} Ke7 {[%emt 0:00:57]} 48. Qc4 {[%emt 0:04:37]} Qa5 {[%emt 0:00:07]} 49. Kd3 {[%emt 0:02:53]} Kd6 {[%emt 0:00:43]} 50. Qb5 {[%emt 0:01:32]} Qa7 {[%emt 0:00:21]} 51. a5 {[%emt 0:02:08]} c4+ {[%emt 0:01:10]} 52. Ke2 {[%emt 0:02:14]} Qa8 {[%emt 0:02:32]} 53. Qb4+ {[%emt 0:02:29]} Kd7 {[%emt 0:00:21]} 54. Qa4+ {[%emt 0:02:05]} Ke7 {[%emt 0:00:19]} 55. Qxc4 {[%emt 0:04:58]} Qxa5 {[%emt 0:00:08]} 56. b4 {[%emt 0:00:24]} Qb6 {[%emt 0:00:18]} 57. c3 {[%emt 0:01:35]} Qg1 {[%emt 0:03:04]} 58. Qc7+ {[%emt 0:00:55]} Ke6 {[%emt 0:00:08]} 59. Qc6+ {[%emt 0:00:27]} Ke7 {[%emt 0:02:15]} 60. b5 {[%emt 0:00:05]} Qg4+ {[%emt 0:01:58]} 61. Kd3 {[%emt 0:00:27]} 1-0

[Event "76th Montenegro Championship 2024"]
[Site "Podgorica"]
[Date "2024.02.07"]
[Round "2.11"]
[White "Pobor, Milo"]
[Black "Nikcevic, Nebojsa"]
[Result "0-1"]
[ECO "C49"]
[WhiteElo "2201"]
[BlackElo "2338"]
[Annotator "TA"]
[PlyCount "72"]
[EventDate "2024.02.06"]
[EventType "swiss"]
[EventCountry "MNE"]
[SourceTitle "playchess.com"]
[Source "ChessBase"]
[SourceQuality "1"]
[TimeControl "40/5400+30:1800+30"]

{[%evp 15,72,45,41,42,37,41,50,39,52,56,70,75,73,62,65,44,132,0,0,0,0,-6,-12,-33,43,34,45,25,60,72,68,-100,8,-46,0,-14,0,0,0,0,0,0,16,18,220,208,302,284,420,395,439,444,456,424,501,390,613,279,270]} 1. e4 {[%emt 0:00:02]} e5 {[%emt 0:02:14]} 2. Nf3 {[%emt 0:00:08]} Nc6 {[%emt 0:00:05]} 3. Nc3 {[%emt 0:00:09]} Nf6 {[%emt 0:00:22]} 4. Bb5 {[%emt 0:00:04]} Bb4 {[%emt 0:00:34]} 5. O-O {[%emt 0:00:15]} Bxc3 {[%emt 0:00:30]} 6. bxc3 {[%emt 0:02:10]} d6 {[%emt 0:00:46]} 7. Re1 {[%emt 0:01:40]} Bd7 {[%emt 0:02:06]} 8. d4 {[%emt 0:02:38]} O-O {[%emt 0:00:45]} 9. Bg5 {[%emt 0:04:15]} h6 {[%emt 0:11:46]} 10. Bh4 {[%emt 0:05:23]} Re8 {[%emt 0:00:07]} 11. h3 {[%emt 0:06:46] White is slightly better.} b6 {[%emt 0:13:09]} 12. Qd3 {[%emt 0:11:39]} a6 {[%emt 0:21:52]} 13. Bxa6 {[%emt 0:06:00]} exd4 {[%emt 0:00:56]} 14. Bb7 {[%emt 0:06:06]} (14. Nxd4 Ne5 15. Qf1 Ng6 16. Bxf6 Qxf6 $16) 14... Ra3 {[%emt 0:03:38]} 15. Bxc6 {[%emt 0:05:01]} (15. Nxd4 Ne5 16. Qd2 Qb8 $15) 15... Rxc3 {[%emt 0:02:30]} (15... Bxc6 $14 16. Nxd4 Bd7) 16. Qxd4 {[%emt 0:05:32]} ({White has to play} 16. Bxf6 $1 $16 gxf6 17. Qd2 (17. Qxd4 Rxc6 18. Qd2 Kh7 $14) 17... Rxc6 18. Qxh6) 16... Rxc6 $11 {[%emt 0:00:07]} 17. Rad1 {[%emt 0:03:14]} g5 {[%emt 0:16:57]} (17... Rxc2 $2 18. e5 $18) 18. Bg3 {[%emt 0:04:08]} (18. e5 $2 dxe5 (18... Nh5 19. Bg3 $15) 19. Qa1 (19. Nxe5 $2 Rd6 $19) 19... gxh4 $19) (18. Nxg5 $5 hxg5 19. Bxg5 $15) 18... Nh5 {[%emt 0:02:07][%cal Oh5g3]} 19. Bh2 {[%emt 0:02:06]} Be6 {[%emt 0:01:12]} ({Black should try} 19... Rc5 $15) 20. g4 $1 $14 {[%emt 0:09:25]} Rc4 {[%emt 0:03:15]} 21. Qd3 {[%emt 0:03:58][%cal Of3d4]} Nf4 {[%emt 0:02:23]} 22. Bxf4 {[%emt 0:02:52]} gxf4 {[%emt 0:00:07]} 23. Nd4 $2 {[%emt 0:04:21] [#]} (23. e5 $14) 23... Ra4 {[%emt 0:04:55]} (23... Rc5 $1 $17 24. Nf5 Qg5 (24... Bxa2 25. Nxh6+ Kf8 26. Nf5 $11)) 24. Qf3 {[%emt 0:13:11]} ({Better is} 24. e5 $11) 24... Qf6 {[%emt 0:07:15]} (24... Bxa2 25. Qxf4 Qg5 26. Qxg5+ hxg5 27. Kg2 $11) (24... Qg5 $1 $15 {deserves consideration.}) 25. Ne2 {[%emt 0:00:05][%cal Bd4e2,Be2f4,Bf4h5][%mdl 32]} Bxa2 {[%emt 0:00:09]} 26. Nxf4 {[%emt 0:01:16]} d5 {[%emt 0:00:11][%cal Re8e4,Bd6d5,Bd5e4,Be4e3][%mdl 32]} 27. Qg3 {[%emt 0:00:36] Black must now prevent Nh5.} Raxe4 {[%emt 0:01:34]} (27... dxe4 $6 28. Nh5 Qe5 29. Qh4 $16) 28. Rxe4 $40 {[%emt 0:00:07][%mdl 128] Black needs to defend precisely.} dxe4 {[%emt 0:00:18]} 29. Nh5 {[%emt 0:00:52]} Qg5 {[%emt 0:02:16] [#] This costs Black the game.} (29... Qe5 $1 $11) 30. Qc3 $1 $18 {[%emt 0:00:35] Nf6+ is the strong threat.} (30. Qxc7 e3 31. Qc3 (31. Qxb6 e2 $11) 31... Qe5 32. Qxe5 Rxe5 $11) 30... Qe5 {[%emt 0:00:47]} (30... Re5 $142 31. Qc6 (31. Qxc7 Kh7 $18) 31... Kh7) 31. Qc6 {[%emt 0:00:52]} Re6 {[%emt 0:00:33] Dodges Nf6+} (31... Qe6 $142 32. Nf6+ (32. Qxc7 e3 $11) 32... Kf8 33. Qxe8+ Qxe8 34. Nxe8 Kxe8) 32. Qa8+ {[%emt 0:00:29]} Kh7 {[%emt 0:00:02][%cal Oe4e3]} 33. Qxa2 {[%emt 0:00:33] Rd5 would now be deadly.} e3 {[%emt 0:00:17] And now ...exf2+ would win.} 34. c4 {[%emt 0:00:11]} Rd6 {[%emt 0:01:11]} 35. Qc2+ {[%emt 0:00:46]} f5 {[%emt 0:00:06]} (35... Kg8 $142 36. Rxd6 exf2+ 37. Qxf2 Qxd6) 36. Re1 {[%emt 0:00:31]} (36. gxf5 $2 {too greedy.} exf2+ 37. Kf1 (37. Kg2 $2 Qe1 $19) 37... Qh2 $19) (36. Rxd6 $142 {White threatens Rd7+ and mate.} cxd6 37. fxe3 (37. Qxf5+ $2 {is the wrong capture.} Qxf5 38. gxf5 e2 $19) (37. gxf5 $2 e2 $19) 37... Qxe3+ 38. Kg2) 36... Rd2 {[%emt 0:00:09][%mdl 32768] Weighted Error Value: White=0.40/Black=0.52.  Loses game:     	---       	Black=1      Mistake:       	White=4     	Black=7      Inaccurate:     	---       	Black=1      OK:         	White=10    	Black=9      Best:        	White=3     	Black=2      Strong:       	White=2     	---       . Loss on time!?} 0-1

[Event "76th Montenegro Championship 2024"]
[Site "Podgorica"]
[Date "2024.02.07"]
[Round "2.12"]
[White "Vujosevic, Vladimir"]
[Black "Vujovic, Savo"]
[Result "0-1"]
[ECO "B31"]
[WhiteElo "2335"]
[BlackElo "2137"]
[Annotator "TA"]
[PlyCount "58"]
[EventDate "2024.02.06"]
[EventType "swiss"]
[EventCountry "MNE"]
[SourceTitle "playchess.com"]
[Source "ChessBase"]
[SourceQuality "1"]
[TimeControl "40/5400+30:1800+30"]

{[%evp 16,58,27,14,20,41,38,27,28,0,4,0,0,0,6,0,0,-7,-14,0,0,-52,-56,-111,-105,-185,-182,-196,-196,-187,-190,-181,-179,-292,-287,-289,-233,-633,-644,-637,-615,-856,-837,-1098,-958]} 1. e4 {[%emt 0:00:33]} c5 {[%emt 0:00:12]} 2. Nf3 {[%emt 0:00:19]} Nc6 {[%emt 0:00:07]} 3. Bb5 {[%emt 0:00:29]} g6 {[%emt 0:00:16]} 4. O-O {[%emt 0:00:41]} Bg7 {[%emt 0:00:12]} 5. c3 {[%emt 0:00:36]} e5 {[%emt 0:00:11]} 6. d4 {[%emt 0:01:43]} cxd4 {[%emt 0:04:08]} 7. cxd4 {[%emt 0:00:17]} exd4 {[%emt 0:00:06]} 8. Bf4 {[%emt 0:00:49]} Nge7 {[%emt 0:00:18]} 9. Bd6 {[%emt 0:00:52][%mdl 1024] White has compensation.} a6 {[%emt 0:00:11]} 10. Bc4 {[%emt 0:01:06]} b5 {[%emt 0:00:12]} 11. Bd5 {[%emt 0:04:10]} O-O {[%emt 0:00:19] White has an edge.} 12. Nbd2 {[%emt 0:04:38]} Nxd5 {[%emt 0:00:14]} 13. Bxf8 {[%emt 0:00:14]} Qxf8 {[%emt 0:00:03]} 14. exd5 {[%emt 0:00:14]} Nb4 {[%emt 0:00:04][%cal Oc8b7]} 15. Nb3 {[%emt 0:02:43]} d3 {[%emt 0:01:03]} 16. a3 {[%emt 0:04:04]} Nxd5 {[%emt 0:00:12][%cal Od5f4] Black wants to play ...Nf4!} ({Don't play} 16... Nc2 $6 17. Ra2 d6 18. Qxd3 $16) 17. Qxd3 {[%emt 0:02:12]} Bb7 {[%emt 0:00:17]} 18. Na5 {[%emt 0:01:43]} (18. Nbd4 $11) 18... Nf4 $15 {[%emt 0:00:14]} 19. Qe3 {[%emt 0:05:35]} ({White should play} 19. Qd2 $15 Bh6 (19... Nh3+ 20. Kh1 $14) 20. Qb4 (20. Nxb7 $2 {is the wrong capture.} Nh3+ 21. gxh3 Bxd2 $19) 20... Bxf3 21. Qxf8+ Kxf8 22. gxf3) 19... Bh6 $1 $17 {[%emt 0:00:44][%cal Of4h3] Black is more active.} 20. Qb3 {[%emt 0:04:55]} (20. Nxb7 $17 Nh3+ 21. gxh3 Bxe3 22. fxe3) 20... Bd5 $1 $19 {[%emt 0:02:22]} 21. Qd1 {[%emt 0:01:38]} Re8 $1 {[%emt 0:03:58]} 22. Re1 {[%emt 0:05:35] Wards off Ne2+} Rxe1+ $1 {[%emt 0:00:21]} 23. Nxe1 {[%emt 0:00:14] [#] White is weak on the light squares} Qd8 $1 {[%emt 0:01:01]} 24. b4 {[%emt 0:14:46]} (24. Nb3 {was the only defense.}) 24... Qg5 {[%emt 0:04:01][%cal Rf4g2]} 25. f3 {[%emt 0:02:58]} Bg7 {[%emt 0:06:41] aiming for ...Nh3+.} 26. Rb1 $2 {[%emt 0:03:04]} (26. Kf1) 26... Nh3+ {[%emt 0:05:47] Black is clearly winning.} 27. Kf1 {[%emt 0:00:26] [#]} Qe3 $1 {[%emt 0:00:51][%csl Gh3][%cal Re3f2]} 28. gxh3 {[%emt 0:03:22] And now Ng2 would win.} (28. Qc2 Bd4) 28... Bd4 {[%emt 0:00:14] A strong pair of Bishops.} 29. Qc2 {[%emt 0:02:12] Prevents Qf2+.} Bxf3 {[%emt 0:00:26] Weighted Error Value: White=0.65/Black=0.03 (flawless) .  Mistake:       	White=5     	---        OK:         	White=7     	Black=8      Best:        	White=1     	Black=4      Strong:       	---       	Black=3} 0-1